[Event "Live Chess"]
[Site "Chess.com"]
[Date "2023.05.21"]
[Round "-"]
[White "FlorinHristea"]
[Black "gmnorfolk"]
[Result "0-1"]
[WhiteElo "1811"]
[BlackElo "2108"]
[TimeControl "300"]
[EndTime "4:23:28 PDT"]
[Termination "gmnorfolk won by resignation"]

1. e3 {[%clk 0:04:59.3]} 1... e5 {[%clk 0:04:58.5]} 2. b3 {[%clk 0:04:59.2]}
2... Nc6 {[%clk 0:04:56.7]} 3. Bb2 {[%clk 0:04:57.1]} 3... Nf6 {[%clk
0:04:56.3]} 4. Qf3 {[%clk 0:04:56.5]} 4... d5 {[%clk 0:04:53.5]} 5. Bb5 {[%clk
0:04:53.7]} 5... e4 {[%clk 0:04:49.6]} 6. Qg3 {[%clk 0:04:52.7]} 6... Bd6 {[%clk
0:04:45.1]} 7. Qxg7 {[%clk 0:04:51.1]} 7... Rg8 {[%clk 0:04:40.4]} 8. Qxf6
{[%clk 0:04:50.1]} 8... Qxf6 {[%clk 0:04:38.4]} 9. Bxf6 {[%clk 0:04:50]} 9...
Rxg2 {[%clk 0:04:35.6]} 10. Ne2 {[%clk 0:04:48.2]} 10... Rg6 {[%clk 0:04:33.9]}
11. Bd4 {[%clk 0:04:43.8]} 11... Bd7 {[%clk 0:04:31.9]} 12. Bxc6 {[%clk
0:04:41.7]} 12... bxc6 {[%clk 0:04:30.6]} 13. Ng3 {[%clk 0:04:37.2]} 13... O-O-O
{[%clk 0:04:28]} 14. Bxa7 {[%clk 0:04:33.1]} 14... c5 {[%clk 0:04:26.4]} 15. b4
{[%clk 0:04:30.7]} 15... Be5 {[%clk 0:04:23.1]} 16. c3 {[%clk 0:04:23.6]} 16...
cxb4 {[%clk 0:04:22.2]} 17. Bd4 {[%clk 0:04:22.3]} 17... Bd6 {[%clk 0:04:21.2]}
18. cxb4 {[%clk 0:04:20]} 18... Bxb4 {[%clk 0:04:20]} 19. Bc3 {[%clk 0:04:18.9]}
19... Bd6 {[%clk 0:04:18.9]} 20. a3 {[%clk 0:04:16.9]} 20... c5 {[%clk
0:04:18.4]} 21. a4 {[%clk 0:04:15]} 21... Kc7 {[%clk 0:04:16.5]} 22. a5 {[%clk
0:04:14.2]} 22... Rb8 {[%clk 0:04:14.3]} 23. Kf1 {[%clk 0:04:02.8]} 23... Bb5+
{[%clk 0:04:12.8]} 24. Kg2 {[%clk 0:04:01.4]} 24... h5 {[%clk 0:04:12.1]} 25. h4
{[%clk 0:03:58.5]} 25... Rbg8 {[%clk 0:04:10.2]} 26. Rh3 {[%clk 0:03:54.6]}
26... Bd7 {[%clk 0:04:09.3]} 27. a6 {[%clk 0:03:51.8]} 27... Bxh3+ {[%clk
0:04:07.2]} 28. Kxh3 {[%clk 0:03:50.3]} 28... Bxg3 {[%clk 0:04:05.9]} 29. a7
{[%clk 0:03:49.4]} 29... Bxf2 {[%clk 0:03:52.9]} 30. Be5+ {[%clk 0:03:47]} 30...
Kb7 {[%clk 0:03:48]} 31. Bb8 {[%clk 0:03:42]} 31... Ka8 {[%clk 0:03:45.6]} 32.
Nc3 {[%clk 0:03:41]} 32... Bg3 {[%clk 0:03:33.9]} 33. Nxd5 {[%clk 0:03:34.9]}
33... Bxb8 {[%clk 0:03:31.8]} 34. Nb6+ {[%clk 0:03:34]} 34... Rxb6 {[%clk
0:03:30.2]} 35. axb8=Q+ {[%clk 0:03:33.3]} 35... Kxb8 {[%clk 0:03:28.9]} 0-1

[Event "Live Chess"]
[Site "Chess.com"]
[Date "2023.05.21"]
[Round "-"]
[White "zdanevych"]
[Black "TheSmoulderingMaster"]
[Result "1-0"]
[WhiteElo "1551"]
[BlackElo "1643"]
[TimeControl "300"]
[EndTime "4:23:44 PDT"]
[Termination "zdanevych won by resignation"]

1. d4 {[%clk 0:04:59.1]} 1... Nf6 {[%clk 0:04:58.6]} 2. c4 {[%clk 0:04:58.2]}
2... d6 {[%clk 0:04:57.9]} 3. Nc3 {[%clk 0:04:57.5]} 3... g6 {[%clk 0:04:57.2]}
4. e4 {[%clk 0:04:56.5]} 4... Bg7 {[%clk 0:04:56.5]} 5. h3 {[%clk 0:04:55.6]}
5... O-O {[%clk 0:04:55.6]} 6. Nf3 {[%clk 0:04:55]} 6... c5 {[%clk 0:04:54.4]}
7. d5 {[%clk 0:04:53.8]} 7... Nbd7 {[%clk 0:04:53.1]} 8. Bd3 {[%clk 0:04:50]}
8... a6 {[%clk 0:04:51.9]} 9. O-O {[%clk 0:04:48.6]} 9... Rb8 {[%clk 0:04:51.4]}
10. Bd2 {[%clk 0:04:44.6]} 10... Nh5 {[%clk 0:04:47.5]} 11. Rb1 {[%clk
0:04:38.1]} 11... Ne5 {[%clk 0:04:45.5]} 12. Nxe5 {[%clk 0:04:33.3]} 12... Bxe5
{[%clk 0:04:44.2]} 13. b3 {[%clk 0:04:26.6]} 13... Qa5 {[%clk 0:04:40.7]} 14.
Qc2 {[%clk 0:04:12]} 14... Nf4 {[%clk 0:04:36.1]} 15. Ne2 {[%clk 0:03:54.8]}
15... Qc7 {[%clk 0:04:31.6]} 16. Nxf4 {[%clk 0:03:53.1]} 16... b5 {[%clk
0:04:21.9]} 17. Ne2 {[%clk 0:03:48.4]} 17... Qd7 {[%clk 0:04:15.2]} 18. Bc3
{[%clk 0:03:45.7]} 18... Bxc3 {[%clk 0:04:08.1]} 19. Qxc3 {[%clk 0:03:42.2]}
19... b4 {[%clk 0:04:06.9]} 20. Qd2 {[%clk 0:03:34.1]} 20... e5 {[%clk
0:04:05.9]} 21. dxe6 {[%clk 0:03:32.1]} 21... Qxe6 {[%clk 0:04:04.7]} 22. Nf4
{[%clk 0:03:26.5]} 22... Qf6 {[%clk 0:04:03]} 23. Nd5 {[%clk 0:03:24.1]} 23...
Qh4 {[%clk 0:04:00.3]} 24. Qf4 {[%clk 0:03:17.7]} 24... Qd8 {[%clk 0:03:55.8]}
25. e5 {[%clk 0:03:01.1]} 25... dxe5 {[%clk 0:03:52.7]} 26. Qxe5 {[%clk
0:03:01]} 26... Be6 {[%clk 0:03:50.5]} 27. Nf6+ {[%clk 0:02:42.8]} 27... Kh8
{[%clk 0:03:49]} 28. Nh5+ {[%clk 0:02:34.8]} 1-0

[Event "Live Chess"]
[Site "Chess.com"]
[Date "2023.05.21"]
[Round "-"]
[White "Dhaydon19"]
[Black "Geomorph"]
[Result "1-0"]
[WhiteElo "2699"]
[BlackElo "1280"]
[TimeControl "300"]
[EndTime "4:23:46 PDT"]
[Termination "Dhaydon19 won by resignation"]

1. d4 {[%clk 0:04:57.7]} 1... d5 {[%clk 0:04:58.7]} 2. Nf3 {[%clk 0:04:57.1]}
2... Nf6 {[%clk 0:04:57.1]} 3. g3 {[%clk 0:04:56.6]} 3... c6 {[%clk 0:04:55.5]}
4. Bg2 {[%clk 0:04:55.8]} 4... Bf5 {[%clk 0:04:53.3]} 5. O-O {[%clk 0:04:54.7]}
5... Nbd7 {[%clk 0:04:51.9]} 6. c3 {[%clk 0:04:53.3]} 6... Qb6 {[%clk
0:04:49.3]} 7. Nbd2 {[%clk 0:04:52.6]} 7... e6 {[%clk 0:04:44.9]} 8. Nh4 {[%clk
0:04:51.6]} 8... Bg6 {[%clk 0:04:43.5]} 9. Nxg6 {[%clk 0:04:50.5]} 9... hxg6
{[%clk 0:04:43.4]} 10. e4 {[%clk 0:04:50]} 10... Be7 {[%clk 0:04:32]} 11. e5
{[%clk 0:04:41.3]} 11... Ng8 {[%clk 0:04:30.2]} 12. f4 {[%clk 0:04:39.5]} 12...
f6 {[%clk 0:04:27.6]} 13. Qg4 {[%clk 0:04:36.8]} 13... f5 {[%clk 0:04:24.6]} 14.
Qxg6+ {[%clk 0:04:35.4]} 14... Kd8 {[%clk 0:04:23.6]} 15. Qxg7 {[%clk
0:04:32.7]} 15... Kc7 {[%clk 0:04:15.4]} 16. Qxh8 {[%clk 0:04:30.4]} 1-0

[Event "Live Chess"]
[Site "Chess.com"]
[Date "2023.05.21"]
[Round "-"]
[White "YrrriKharkiv"]
[Black "manthanit"]
[Result "1-0"]
[WhiteElo "2064"]
[BlackElo "1080"]
[TimeControl "300"]
[EndTime "4:24:12 PDT"]
[Termination "YrrriKharkiv won by resignation"]

1. d4 {[%clk 0:04:57.1]} 1... d6 {[%clk 0:04:59.3]} 2. Nf3 {[%clk 0:04:56.2]}
2... e6 {[%clk 0:04:57.2]} 3. c4 {[%clk 0:04:55.7]} 3... g6 {[%clk 0:04:55.6]}
4. Nc3 {[%clk 0:04:55.2]} 4... Bg7 {[%clk 0:04:55.1]} 5. e4 {[%clk 0:04:54.5]}
5... Ne7 {[%clk 0:04:54.1]} 6. Bg5 {[%clk 0:04:53.4]} 6... h6 {[%clk 0:04:50.3]}
7. Be3 {[%clk 0:04:52.3]} 7... O-O {[%clk 0:04:47]} 8. Qd2 {[%clk 0:04:51.1]}
8... Kh7 {[%clk 0:04:45.1]} 9. h4 {[%clk 0:04:50.2]} 9... Nbc6 {[%clk
0:04:31.6]} 10. Be2 {[%clk 0:04:38.8]} 10... e5 {[%clk 0:04:30.6]} 11. d5 {[%clk
0:04:37.5]} 11... Nd4 {[%clk 0:04:28]} 12. Nxd4 {[%clk 0:04:35.5]} 12... exd4
{[%clk 0:04:26.9]} 13. Bxd4 {[%clk 0:04:34.8]} 13... Bxd4 {[%clk 0:04:25]} 14.
Qxd4 {[%clk 0:04:33.2]} 14... Ng8 {[%clk 0:04:17]} 15. O-O-O {[%clk 0:04:25.1]}
15... Re8 {[%clk 0:04:15.7]} 16. f4 {[%clk 0:04:17.4]} 16... Nf6 {[%clk
0:04:04.9]} 17. Bf3 {[%clk 0:04:12.9]} 17... Bg4 {[%clk 0:03:57]} 18. e5 {[%clk
0:04:07.1]} 18... dxe5 {[%clk 0:03:53.7]} 19. fxe5 {[%clk 0:04:03.8]} 19... Bxf3
{[%clk 0:03:51]} 20. gxf3 {[%clk 0:03:56.5]} 20... Nh5 {[%clk 0:03:33.4]} 21.
Rhg1 {[%clk 0:03:51.8]} 21... Rg8 {[%clk 0:03:30.1]} 22. e6 {[%clk 0:03:39.8]}
22... fxe6 {[%clk 0:03:25.6]} 23. dxe6 {[%clk 0:03:39.2]} 23... Qxd4 {[%clk
0:03:25.1]} 24. Rxd4 {[%clk 0:03:37.5]} 24... Rae8 {[%clk 0:03:22.9]} 25. Re1
{[%clk 0:03:22.5]} 25... Ng3 {[%clk 0:03:16.6]} 26. Nd5 {[%clk 0:03:16]} 26...
Nf5 {[%clk 0:03:06.5]} 27. Nf6+ {[%clk 0:03:09.7]} 27... Kg7 {[%clk 0:03:02]}
28. Nxg8 {[%clk 0:03:00.3]} 28... Rxg8 {[%clk 0:03:00.8]} 29. Rd7+ {[%clk
0:02:59.1]} 29... Kh8 {[%clk 0:01:55.6]} 30. Rxc7 {[%clk 0:02:55.3]} 30... Re8
{[%clk 0:01:50.9]} 31. e7 {[%clk 0:02:52.5]} 31... Kg8 {[%clk 0:01:45.6]} 32.
Rxb7 {[%clk 0:02:50.1]} 32... Kf7 {[%clk 0:01:44.2]} 33. Rxa7 {[%clk 0:02:48.9]}
33... Rxe7 {[%clk 0:01:33.1]} 34. Rexe7+ {[%clk 0:02:46.4]} 34... Nxe7 {[%clk
0:01:32.5]} 35. Kd2 {[%clk 0:02:44.3]} 35... Kf6 {[%clk 0:01:31.1]} 36. Rxe7
{[%clk 0:02:43.1]} 36... Kxe7 {[%clk 0:01:30.1]} 37. Ke3 {[%clk 0:02:41.7]} 1-0

[Event "Live Chess"]
[Site "Chess.com"]
[Date "2023.05.21"]
[Round "-"]
[White "JoRoSaR"]
[Black "Missedidea"]
[Result "1-0"]
[WhiteElo "1702"]
[BlackElo "1818"]
[TimeControl "300"]
[EndTime "4:24:20 PDT"]
[Termination "JoRoSaR won by resignation"]

1. e4 {[%clk 0:04:56.4]} 1... c5 {[%clk 0:04:57.8]} 2. Nf3 {[%clk 0:04:55.1]}
2... d6 {[%clk 0:04:56.6]} 3. b3 {[%clk 0:04:53.6]} 3... Nc6 {[%clk 0:04:53.4]}
4. Bb2 {[%clk 0:04:52.4]} 4... e5 {[%clk 0:04:50.5]} 5. c3 {[%clk 0:04:49.8]}
5... Nf6 {[%clk 0:04:48]} 6. Qc2 {[%clk 0:04:44.6]} 6... Bd7 {[%clk 0:04:38.9]}
7. d3 {[%clk 0:04:28.8]} 7... Be7 {[%clk 0:04:33.2]} 8. Be2 {[%clk 0:04:23.7]}
8... O-O {[%clk 0:04:30.9]} 9. O-O {[%clk 0:04:22.5]} 9... Rc8 {[%clk
0:04:25.3]} 10. Nbd2 {[%clk 0:04:21.8]} 10... b5 {[%clk 0:04:17]} 11. d4 {[%clk
0:04:18.6]} 11... b4 {[%clk 0:04:14.4]} 12. dxe5 {[%clk 0:04:16.1]} 12... dxe5
{[%clk 0:04:09.8]} 13. Rad1 {[%clk 0:04:06.5]} 13... Qc7 {[%clk 0:03:56.1]} 14.
Nc4 {[%clk 0:03:42.3]} 14... Bg4 {[%clk 0:03:35.1]} 15. Qb1 {[%clk 0:03:38.3]}
15... Rcd8 {[%clk 0:03:25.6]} 16. Rfe1 {[%clk 0:03:34.9]} 16... Rxd1 {[%clk
0:03:21.4]} 17. Qxd1 {[%clk 0:03:29]} 17... Nxe4 {[%clk 0:03:13.5]} 18. Nfxe5
{[%clk 0:03:23.2]} 18... Bxe2 {[%clk 0:03:01.2]} 19. Qxe2 {[%clk 0:03:18.9]}
19... Nxc3 {[%clk 0:02:52.2]} 20. Bxc3 {[%clk 0:03:10.4]} 20... bxc3 {[%clk
0:02:50]} 21. Nxc6 {[%clk 0:03:08.5]} 21... Qxc6 {[%clk 0:02:38.4]} 22. Qxe7
{[%clk 0:03:04.2]} 22... c2 {[%clk 0:02:35.5]} 23. Qe2 {[%clk 0:03:02.3]} 23...
h6 {[%clk 0:02:23.8]} 24. Rc1 {[%clk 0:03:00.9]} 24... Re8 {[%clk 0:02:18.1]}
25. Qxc2 {[%clk 0:02:58.3]} 25... Qd5 {[%clk 0:02:08.1]} 26. Rd1 {[%clk
0:02:56]} 26... Qg5 {[%clk 0:02:04]} 27. g3 {[%clk 0:02:52.1]} 27... g6 {[%clk
0:02:00.2]} 28. Nd6 {[%clk 0:02:50.9]} 28... Rd8 {[%clk 0:01:47.8]} 29. Ne4
{[%clk 0:02:50]} 29... Rxd1+ {[%clk 0:01:45.1]} 30. Qxd1 {[%clk 0:02:49.7]}
30... Qe7 {[%clk 0:01:41.6]} 31. Qd5 {[%clk 0:02:45.9]} 31... Kg7 {[%clk
0:01:37.7]} 32. Nxc5 {[%clk 0:02:42]} 32... Qe1+ {[%clk 0:01:30.8]} 33. Kg2
{[%clk 0:02:38.9]} 33... Qa1 {[%clk 0:01:26.4]} 34. Qd2 {[%clk 0:02:34.9]} 34...
a5 {[%clk 0:01:22.1]} 35. Nd3 {[%clk 0:02:26.6]} 35... Qd4 {[%clk 0:01:14.6]}
36. Qb2 {[%clk 0:02:25.2]} 1-0

[Event "Live Chess"]
[Site "Chess.com"]
[Date "2023.05.21"]
[Round "-"]
[White "Twickenham2014"]
[Black "ranvir123"]
[Result "1-0"]
[WhiteElo "2281"]
[BlackElo "963"]
[TimeControl "300"]
[EndTime "4:24:22 PDT"]
[Termination "Twickenham2014 won by checkmate"]

1. e4 {[%clk 0:04:59.4]} 1... e5 {[%clk 0:04:58.8]} 2. Nf3 {[%clk 0:04:58.5]}
2... Nc6 {[%clk 0:04:57]} 3. Bc4 {[%clk 0:04:58.1]} 3... Bc5 {[%clk 0:04:51.2]}
4. b4 {[%clk 0:04:42.7]} 4... Bxb4 {[%clk 0:04:47.1]} 5. c3 {[%clk 0:04:37.1]}
5... Bc5 {[%clk 0:04:44.6]} 6. d4 {[%clk 0:04:34.8]} 6... exd4 {[%clk
0:04:40.7]} 7. cxd4 {[%clk 0:04:34.7]} 7... Bb4+ {[%clk 0:04:36]} 8. Kf1 {[%clk
0:04:34.2]} 8... d6 {[%clk 0:04:29]} 9. Qb3 {[%clk 0:04:27.5]} 9... Nf6 {[%clk
0:04:06.9]} 10. Bxf7+ {[%clk 0:04:09.8]} 10... Kf8 {[%clk 0:03:53.8]} 11. Bd5
{[%clk 0:03:59.7]} 11... a5 {[%clk 0:03:38.1]} 12. a3 {[%clk 0:03:55.5]} 12...
Nxd5 {[%clk 0:03:30.6]} 13. exd5 {[%clk 0:03:48.1]} 13... Bxa3 {[%clk
0:03:18.2]} 14. Nxa3 {[%clk 0:03:42.3]} 14... Na7 {[%clk 0:03:09.2]} 15. Bg5
{[%clk 0:03:28.1]} 15... Qe8 {[%clk 0:03:04.6]} 16. Re1 {[%clk 0:03:25.4]} 16...
Qg6 {[%clk 0:02:53.1]} 17. h4 {[%clk 0:03:19.5]} 17... c6 {[%clk 0:02:48.7]} 18.
h5 {[%clk 0:03:02.3]} 18... Qf5 {[%clk 0:02:43.3]} 19. Qe3 {[%clk 0:02:58.8]}
19... Qxd5 {[%clk 0:02:38.6]} 20. Qe8# {[%clk 0:02:57.2]} 1-0

[Event "Live Chess"]
[Site "Chess.com"]
[Date "2023.05.21"]
[Round "-"]
[White "FlorinHristea"]
[Black "elephantgerrald"]
[Result "1-0"]
[WhiteElo "1811"]
[BlackElo "686"]
[TimeControl "300"]
[EndTime "4:24:37 PDT"]
[Termination "FlorinHristea won by checkmate"]

1. e4 {[%clk 0:04:57.8]} 1... e5 {[%clk 0:04:58.7]} 2. d4 {[%clk 0:04:55]} 2...
exd4 {[%clk 0:04:57.7]} 3. Nf3 {[%clk 0:04:54.9]} 3... Nc6 {[%clk 0:04:54]} 4.
Bc4 {[%clk 0:04:54.1]} 4... Nf6 {[%clk 0:04:51.9]} 5. Nxd4 {[%clk 0:04:53.7]}
5... Nxe4 {[%clk 0:04:50.2]} 6. Nxc6 {[%clk 0:04:52.7]} 6... bxc6 {[%clk
0:04:48]} 7. Qe2 {[%clk 0:04:52.6]} 7... f5 {[%clk 0:04:45.2]} 8. f3 {[%clk
0:04:51.8]} 8... d5 {[%clk 0:04:41.5]} 9. Bb3 {[%clk 0:04:47.7]} 9... Bb4+
{[%clk 0:04:34.9]} 10. c3 {[%clk 0:04:44.5]} 10... d4 {[%clk 0:04:30]} 11. fxe4
{[%clk 0:04:42.9]} 11... fxe4 {[%clk 0:04:26.1]} 12. Qxe4+ {[%clk 0:04:42.8]}
12... Kd7 {[%clk 0:04:24.9]} 13. Qe6# {[%clk 0:04:39.8]} 1-0

[Event "Live Chess"]
[Site "Chess.com"]
[Date "2023.05.21"]
[Round "-"]
[White "ElectricFalcon"]
[Black "domrobson"]
[Result "0-1"]
[WhiteElo "1080"]
[BlackElo "1712"]
[TimeControl "300"]
[EndTime "4:24:47 PDT"]
[Termination "domrobson won by checkmate"]

1. d4 {[%clk 0:04:56.9]} 1... Nf6 {[%clk 0:04:58.8]} 2. Nf3 {[%clk 0:04:55.6]}
2... d5 {[%clk 0:04:58.1]} 3. Nc3 {[%clk 0:04:55]} 3... e6 {[%clk 0:04:57.4]} 4.
Bg5 {[%clk 0:04:53.2]} 4... c6 {[%clk 0:04:56.3]} 5. e3 {[%clk 0:04:52.3]} 5...
Nbd7 {[%clk 0:04:55.5]} 6. Be2 {[%clk 0:04:50.5]} 6... Be7 {[%clk 0:04:51.9]} 7.
O-O {[%clk 0:04:49.2]} 7... O-O {[%clk 0:04:51.5]} 8. Bd3 {[%clk 0:04:45.1]}
8... Qc7 {[%clk 0:04:49.3]} 9. Bxf6 {[%clk 0:04:41.5]} 9... Bxf6 {[%clk
0:04:45.8]} 10. e4 {[%clk 0:04:36.7]} 10... dxe4 {[%clk 0:04:41.6]} 11. Nxe4
{[%clk 0:04:35.2]} 11... Be7 {[%clk 0:04:40]} 12. Nfd2 {[%clk 0:04:29.5]} 12...
Bf6 {[%clk 0:04:32.8]} 13. Qg4 {[%clk 0:04:24.4]} 13... Bxd4 {[%clk 0:04:27.3]}
14. Qh3 {[%clk 0:04:10.6]} 14... f5 {[%clk 0:04:23.4]} 15. Nc3 {[%clk
0:04:03.1]} 15... Nf6 {[%clk 0:04:20.1]} 16. Nf3 {[%clk 0:03:53.4]} 16... Bb6
{[%clk 0:04:16]} 17. Ng5 {[%clk 0:03:47.8]} 17... h6 {[%clk 0:04:12.3]} 18. Nf3
{[%clk 0:03:42.6]} 18... f4 {[%clk 0:04:03.7]} 19. Ne4 {[%clk 0:03:36.8]} 19...
e5 {[%clk 0:04:00.3]} 20. Qh4 {[%clk 0:03:26.8]} 20... Nxe4 {[%clk 0:03:46]} 21.
Bxe4 {[%clk 0:03:23.3]} 21... Bf5 {[%clk 0:03:44.1]} 22. Bxf5 {[%clk 0:03:20]}
22... Rxf5 {[%clk 0:03:40.8]} 23. Qg4 {[%clk 0:03:12.9]} 23... Raf8 {[%clk
0:03:37.8]} 24. Nh4 {[%clk 0:03:08.4]} 24... Rg5 {[%clk 0:03:35.8]} 25. Qe6+
{[%clk 0:03:01.5]} 25... Kh7 {[%clk 0:03:32]} 26. Rad1 {[%clk 0:02:51.9]} 26...
Rf6 {[%clk 0:03:29.5]} 27. Qe8 {[%clk 0:02:43.7]} 27... Qf7 {[%clk 0:03:23.4]}
28. Qxf7 {[%clk 0:02:29.7]} 28... Rxf7 {[%clk 0:03:18]} 29. Nf3 {[%clk
0:02:28.7]} 29... Rgf5 {[%clk 0:03:13.9]} 30. b3 {[%clk 0:02:23.1]} 30... e4
{[%clk 0:03:12.6]} 31. Nd4 {[%clk 0:02:08.7]} 31... Rd5 {[%clk 0:03:10.9]} 32.
Ne6 {[%clk 0:02:03.4]} 32... e3 {[%clk 0:03:03.3]} 33. Rxd5 {[%clk 0:01:58.2]}
33... exf2+ {[%clk 0:02:56.6]} 34. Kh1 {[%clk 0:01:54.5]} 34... cxd5 {[%clk
0:02:56.2]} 35. c3 {[%clk 0:01:48.1]} 35... Re7 {[%clk 0:02:53.7]} 36. Nd4
{[%clk 0:01:46.5]} 36... Re1 {[%clk 0:02:51.6]} 37. h3 {[%clk 0:01:36.5]} 37...
Rxf1+ {[%clk 0:02:49.1]} 38. Kh2 {[%clk 0:01:36.4]} 38... Rc1 {[%clk 0:02:42.6]}
39. Ne2 {[%clk 0:01:29.6]} 39... Rc2 {[%clk 0:02:39.6]} 40. Nxf4 {[%clk
0:01:21.6]} 40... f1=Q {[%clk 0:02:37.1]} 41. Nxd5 {[%clk 0:01:18.4]} 41...
Qxg2# {[%clk 0:02:34.6]} 0-1

[Event "Live Chess"]
[Site "Chess.com"]
[Date "2023.05.21"]
[Round "-"]
[White "Ferrarifan27"]
[Black "Driftboard"]
[Result "1-0"]
[WhiteElo "2076"]
[BlackElo "885"]
[TimeControl "300"]
[EndTime "4:25:32 PDT"]
[Termination "Ferrarifan27 won by checkmate"]

1. e4 {[%clk 0:04:58.7]} 1... e5 {[%clk 0:04:59.3]} 2. Nf3 {[%clk 0:04:54.6]}
2... Nc6 {[%clk 0:04:57.1]} 3. Bb5 {[%clk 0:04:51.9]} 3... Nf6 {[%clk
0:04:56.5]} 4. O-O {[%clk 0:04:49.8]} 4... a6 {[%clk 0:04:55.6]} 5. Bxc6 {[%clk
0:04:42.5]} 5... bxc6 {[%clk 0:04:53.6]} 6. Nxe5 {[%clk 0:04:41.4]} 6... d6
{[%clk 0:04:47.5]} 7. Nxc6 {[%clk 0:04:39.4]} 7... Qd7 {[%clk 0:04:43.8]} 8. Nd4
{[%clk 0:04:37.3]} 8... c5 {[%clk 0:04:37.7]} 9. Nf3 {[%clk 0:04:33.4]} 9... d5
{[%clk 0:04:35.2]} 10. exd5 {[%clk 0:04:28.9]} 10... Qxd5 {[%clk 0:04:33.9]} 11.
Nc3 {[%clk 0:04:26.2]} 11... Qd8 {[%clk 0:04:31.6]} 12. d3 {[%clk 0:04:25.2]}
12... Bd6 {[%clk 0:04:30.4]} 13. Re1+ {[%clk 0:04:23.4]} 13... Be7 {[%clk
0:04:27.3]} 14. Qe2 {[%clk 0:04:19.1]} 14... O-O {[%clk 0:04:17.7]} 15. Qxe7
{[%clk 0:04:16.4]} 15... Qxe7 {[%clk 0:04:17.1]} 16. Rxe7 {[%clk 0:04:14.6]}
16... Re8 {[%clk 0:04:16.3]} 17. Rxe8+ {[%clk 0:04:13.5]} 17... Nxe8 {[%clk
0:04:14.4]} 18. Ne4 {[%clk 0:04:12.5]} 18... Bg4 {[%clk 0:04:06]} 19. Nxc5
{[%clk 0:04:06.5]} 19... Bxf3 {[%clk 0:04:05.4]} 20. gxf3 {[%clk 0:04:05.9]}
20... Nd6 {[%clk 0:04:03.1]} 21. Bf4 {[%clk 0:04:01.5]} 21... Nf5 {[%clk
0:03:58.6]} 22. c3 {[%clk 0:03:51.4]} 22... Nh4 {[%clk 0:03:55.6]} 23. d4 {[%clk
0:03:40.1]} 23... Nxf3+ {[%clk 0:03:54]} 24. Kg2 {[%clk 0:03:37.9]} 24... Nh4+
{[%clk 0:03:52.5]} 25. Kh3 {[%clk 0:03:34.4]} 25... Ng6 {[%clk 0:03:51.5]} 26.
Bg3 {[%clk 0:03:31.3]} 26... a5 {[%clk 0:03:46.8]} 27. Re1 {[%clk 0:03:23.8]}
27... h6 {[%clk 0:03:45.2]} 28. a4 {[%clk 0:03:15]} 28... Kf8 {[%clk 0:03:43.6]}
29. b3 {[%clk 0:03:08.8]} 29... Re8 {[%clk 0:03:42.1]} 30. Bd6+ {[%clk
0:03:06.5]} 30... Ne7 {[%clk 0:03:39.8]} 31. Nd7+ {[%clk 0:02:59.1]} 31... Kg8
{[%clk 0:03:38.5]} 32. Rxe7 {[%clk 0:02:55.3]} 32... Rxe7 {[%clk 0:03:37.5]} 33.
Bxe7 {[%clk 0:02:55.2]} 33... Kh7 {[%clk 0:03:36.6]} 34. Bd8 {[%clk 0:02:50.9]}
34... Kg6 {[%clk 0:03:36.2]} 35. Bxa5 {[%clk 0:02:49.7]} 35... Kf5 {[%clk
0:03:35.5]} 36. Bb4 {[%clk 0:02:46.9]} 36... Ke6 {[%clk 0:03:34.8]} 37. Nc5+
{[%clk 0:02:46]} 37... Kd6 {[%clk 0:03:33.7]} 38. a5 {[%clk 0:02:44.4]} 38...
Kc6 {[%clk 0:03:32.5]} 39. a6 {[%clk 0:02:41.9]} 39... Kb5 {[%clk 0:03:29.5]}
40. a7 {[%clk 0:02:38.2]} 40... Kb6 {[%clk 0:03:26]} 41. a8=Q {[%clk 0:02:33.5]}
41... Kb5 {[%clk 0:03:24.1]} 42. Qb7# {[%clk 0:02:31.3]} 1-0

[Event "Live Chess"]
[Site "Chess.com"]
[Date "2023.05.21"]
[Round "-"]
[White "TheSmoulderingMaster"]
[Black "Nakula1000"]
[Result "0-1"]
[WhiteElo "1627"]
[BlackElo "611"]
[TimeControl "300"]
[EndTime "4:25:32 PDT"]
[Termination "Nakula1000 won by resignation"]

1. e4 {[%clk 0:04:57.7]} 1... e5 {[%clk 0:04:57.7]} 2. Nf3 {[%clk 0:04:56.4]}
2... Nc6 {[%clk 0:04:55.9]} 3. Bb5 {[%clk 0:04:55.5]} 3... a6 {[%clk 0:04:53.5]}
4. Ba4 {[%clk 0:04:54.2]} 4... h5 {[%clk 0:04:50.6]} 5. O-O {[%clk 0:04:53]}
5... Nf6 {[%clk 0:04:47.8]} 6. c3 {[%clk 0:04:52.2]} 6... Nxe4 {[%clk
0:04:45.1]} 7. d4 {[%clk 0:04:51.1]} 7... b5 {[%clk 0:04:41.9]} 8. Bb3 {[%clk
0:04:48.3]} 8... d5 {[%clk 0:04:39.7]} 9. Re1 {[%clk 0:04:45.3]} 9... exd4
{[%clk 0:04:37.6]} 10. Nxd4 {[%clk 0:04:43.6]} 10... Nxd4 {[%clk 0:04:35.3]} 11.
Qxd4 {[%clk 0:04:42]} 11... Be6 {[%clk 0:04:33.1]} 12. f3 {[%clk 0:04:34.8]}
12... Bc5 {[%clk 0:04:29.7]} 13. Rxe4 {[%clk 0:04:21.3]} 13... Bxd4+ {[%clk
0:04:27]} 14. Rxd4 {[%clk 0:04:20.3]} 14... c5 {[%clk 0:04:25.4]} 15. Rf4 {[%clk
0:04:16.4]} 15... g5 {[%clk 0:04:23.3]} 0-1